[Event "Budapest IM-A ONE WEEK Feb 2024"]
[Site "Budapest"]
[Date "2024.03.01"]
[Round "7.1"]
[White "Dudognon, Thibault"]
[Black "Meessen, Rudolf"]
[Result "1-0"]
[ECO "C07"]
[WhiteElo "2388"]
[BlackElo "2169"]
[Annotator "TA"]
[PlyCount "79"]
[EventDate "2024.02.25"]
[EventType "tourn"]
[EventCountry "HUN"]
[SourceTitle "playchess.com"]
[Source "ChessBase"]
[SourceQuality "1"]
[TimeControl "5400+30"]

{[%evp 10,79,19,14,14,30,14,4,9,6,13,0,0,0,0,0,4,-35,-32,-11,-33,-108,-63,-60,-63,-60,-45,-47,-25,-41,-23,-23,-8,-22,-32,-18,-13,-12,-7,-14,-19,-15,0,0,0,0,0,0,6,0,6,0,10,-24,0,0,0,0,64,70,96,60,203,204,2316,2205,2452,1243,2880,2613,1887,1772]} 1. e4 {[%emt 0:00:02]} e6 {[%emt 0:00:34]} 2. d4 {[%emt 0:01:00]} d5 {[%emt 0:00:05]} 3. Nd2 {[%emt 0:00:11]} c5 {[%emt 0:00:55]} 4. exd5 {[%emt 0:00:07]} Qxd5 {[%emt 0:00:05]} 5. Ngf3 {[%emt 0:00:05]} cxd4 {[%emt 0:00:15]} 6. Bc4 {[%emt 0:00:05]} Qd7 {[%emt 0:00:54]} 7. O-O {[%emt 0:00:57][%mdl 1024] Weiss hat Kompensation.} Nc6 {[%emt 0:00:06]} 8. Re1 {[%emt 0:01:52]} a6 {[%emt 0:03:18] Die Stellung ist ausgeglichen.} 9. Nb3 {[%emt 0:00:21]} b5 {[%emt 0:08:01]} 10. Be2 {[%emt 0:01:11][%cal Oa2a4]} Bb7 {[%emt 0:03:07]} 11. Nbxd4 {[%emt 0:03:09]} Rd8 {[%emt 0:05:25][%cal Rc6d4]} 12. c3 {[%emt 0:10:11]} Nf6 {[%emt 0:01:24]} 13. Nxc6 {[%emt 0:04:43]} Qxc6 {[%emt 0:01:30]} 14. Qb3 {[%emt 0:00:48]} Bc5 {[%emt 0:00:07]} 15. Bf1 {[%emt 0:12:36]} (15. a4 $15) 15... Qb6 {[%emt 0:15:32]} 16. Be3 {[%emt 0:03:00]} Bxf3 {[%emt 0:00:16]} 17. gxf3 {[%emt 0:00:18]} O-O {[%emt 0:01:46]} 18. c4 {[%emt 0:06:27] Lässt Rd5 nicht zu} b4 {[%emt 0:00:09]} 19. Rad1 {[%emt 0:01:10]} Rxd1 {[%emt 0:23:25]} 20. Rxd1 {[%emt 0:00:30]} Rc8 {[%emt 0:00:06]} 21. Qd3 {[%emt 0:03:06]} h6 {[%emt 0:02:51]} 22. b3 {[%emt 0:06:41]} Qa5 {[%emt 0:03:29]} 23. Rd2 {[%emt 0:02:33]} Qc7 {[%emt 0:05:31]} 24. Bg2 {[%emt 0:01:33][%cal Bf1g2,Bg2e4,Be4f3][%mdl 32]} a5 {[%emt 0:00:08]} 25. f4 {[%emt 0:03:05]} Ng4 {[%emt 0:01:02] [#] ...Nxe3 wäre nun fies.} 26. Bxc5 {[%emt 0:03:42]} Qxc5 {[%emt 0:00:37]} 27. Be4 {[%emt 0:01:21][%cal Od3d8]} (27. h3 $5 Nf6 $8 28. Bf3 $11) 27... Nf6 {[%emt 0:02:09]} 28. Bf3 {[%emt 0:03:09]} g6 {[%emt 0:00:44]} 29. Qd4 {[%emt 0:02:34]} Kg7 {[%emt 0:01:18]} 30. Qe5 {[%emt 0:01:49]} (30. Qxc5 {vereinfacht} Rxc5 31. Kg2 Rf5 32. Kg3) 30... Rc7 {[%emt 0:00:37]} 31. Qe3 {[%emt 0:02:21]} (31. Qxc5 {vereinfacht} Rxc5 32. Kg2 Rf5 33. Kg3) 31... Qf5 {[%emt 0:01:30]} 32. Kg2 {[%emt 0:03:05]} h5 {[%emt 0:00:52]} 33. h3 {[%emt 0:01:36]} Kh7 {[%emt 0:05:57]} ({Besser ist} 33... Rc8 $11) 34. Rd8 $1 $14 {[%emt 0:01:21]} Rc5 {[%emt 0:06:46]} 35. Qd4 {[%emt 0:03:35] Weiß steht aktiver.} g5 {[%emt 0:00:03] [#] Danach kann Schwarz die Partie nicht mehr halten.} (35... Rc7 $1 $14) 36. Be2 $1 $18 {[%emt 0:02:54] Und Bd3 würde nun gewinnen.} e5 $2 {[%emt 0:07:19]} (36... gxf4 $2 {ist das falsche Schlagen.} 37. Bd3 $18) (36... Qe4+ 37. Qxe4+ Nxe4) 37. Qxc5 {[%emt 0:00:31] Weiss will mit Bd3 Matt setzen. Weiß steht klar auf Gewinn.} Qxf4 {[%emt 0:00:33]} 38. Qe3 {[%emt 0:01:22]} e4 {[%emt 0:00:20]} 39. Qxf4 {[%emt 0:00:16]} gxf4 {[%emt 0:00:01]} 40. f3 {[%emt 0:00:19] Gewichteter Fehlerwert: Weiß=0.09 (makellos) /Schwarz=0.19 (sehr präzise) .  Fehler:       	Weiß=1     	Schwarz=3     Ungenau:       	Weiß=3     	Schwarz=2     OK:         	Weiß=10    	Schwarz=9     Bester:       	Weiß=1     	---        Stark:        	Weiß=2     	---} 1-0

[Event "Budapest IM-A ONE WEEK Feb 2024"]
[Site "Budapest"]
[Date "2024.03.01"]
[Round "7.2"]
[White "Foldes, Marton Gabor"]
[Black "Papp, Sarah"]
[Result "0-1"]
[ECO "B11"]
[WhiteElo "2119"]
[BlackElo "2279"]
[Annotator "TA"]
[PlyCount "108"]
[EventDate "2024.02.25"]
[EventType "tourn"]
[EventCountry "HUN"]
[SourceTitle "playchess.com"]
[Source "ChessBase"]
[SourceQuality "1"]
[TimeControl "5400+30"]

{[%evp 10,108,22,14,17,13,37,31,31,18,56,54,65,54,52,52,49,0,72,71,103,91,95,117,91,93,92,97,185,175,160,-20,-6,-3,-13,-18,-24,-16,-16,-25,-25,-119,-90,-107,-87,-186,-197,-199,-202,-197,-207,-218,-220,-228,-225,-250,-253,-256,-261,-233,-247,-195,-229,-325,-256,-467,-445,-450,-441,-594,-587,-631,-603,-601,-577,-594,-542,-910,-937,-1562,-1514,-1445,-754,-1174,-1159,-980,-1137,-1155,-982,-5189,-841,-6706,-5489,-29982,-29979,-29988,-29986,-29986,-29986,-29986,-29985]} 1. e4 {[%emt 0:00:01]} c6 {[%emt 0:00:04]} 2. Nf3 {[%emt 0:01:52]} d5 {[%emt 0:00:06]} 3. Nc3 {[%emt 0:01:48]} Bg4 {[%emt 0:00:06]} 4. h3 {[%emt 0:00:05]} Bxf3 {[%emt 0:00:05]} 5. Qxf3 {[%emt 0:00:02]} e6 {[%emt 0:00:07]} 6. Be2 {[%emt 0:02:42]} d4 {[%emt 0:00:18]} 7. Nb1 {[%emt 0:01:38][%cal Bc3b1,Bb1d2,Bd2e4][%mdl 32]} c5 {[%emt 0:00:47]} 8. O-O {[%emt 0:00:52]} Nc6 {[%emt 0:00:09] White is slightly better.} 9. Qg3 {[%emt 0:16:49]} Nf6 {[%emt 0:05:27]} 10. d3 {[%emt 0:00:19]} g6 {[%emt 0:04:35]} 11. f4 {[%emt 0:02:01]} Qc7 {[%emt 0:00:46]} 12. Nd2 {[%emt 0:03:29]} O-O-O {[%emt 0:02:21]} 13. c4 {[%emt 0:09:35]} (13. Qe1 $14) 13... h5 {[%emt 0:08:23]} (13... Nd7 $11) 14. e5 $16 {[%emt 0:03:53]} h4 {[%emt 0:01:50]} 15. Qe1 {[%emt 0:04:57]} Ne8 {[%emt 0:01:26][%cal Bf6e8,Be8g7,Bg7f5][%mdl 32]} 16. Ne4 {[%emt 0:00:37]} Ng7 {[%emt 0:00:22]} 17. a3 {[%emt 0:08:22]} Nf5 {[%emt 0:00:19]} 18. Bf3 {[%emt 0:07:46]} Qb6 {[%emt 0:11:19] [#]} (18... Ne3 $16) 19. b4 $1 $18 {[%emt 0:06:58][%mdl 512]} cxb4 {[%emt 0:03:36] [#]} 20. c5 $2 {[%emt 0:04:15]} Bxc5 $11 {[%emt 0:03:50]} 21. Nxc5 {[%emt 0:00:26]} Qxc5 {[%emt 0:00:02]} 22. axb4 {[%emt 0:00:10]} Qb5 {[%emt 0:16:45]} (22... Qxb4 $2 {perishes.} 23. Bd2 Qb6 24. Bxc6 bxc6 (24... Qxc6 $2 {loses.} 25. Rc1 $18) 25. Ba5 $18) (22... Nxb4 $2 23. Ba3 Qb5 (23... a5 $2 24. Rc1 $18) 24. Bxb4 $18 (24. Qxb4 Rd5 $18)) 23. Bxc6 {[%emt 0:01:14]} Qxc6 {[%emt 0:00:01]} 24. Rxa7 {[%emt 0:01:39]} Kd7 {[%emt 0:05:43] Hoping for ...Ra8.} 25. Ra5 {[%emt 0:04:03] [#]} (25. Bb2 $11) 25... Ra8 $1 $17 {[%emt 0:01:07]} 26. Rc5 {[%emt 0:00:20]} Qb6 {[%emt 0:00:51] And now ...Rhc8 would win. Black is more active.} 27. Bb2 {[%emt 0:04:11]} (27. Bd2 $17 {was the only chance.}) 27... Rhc8 $19 {[%emt 0:01:59]} 28. Rxc8 {[%emt 0:06:19]} Rxc8 {[%emt 0:00:01]} 29. Qd2 {[%emt 0:00:10]} Qb5 {[%emt 0:08:18]} 30. Rc1 {[%emt 0:02:44]} Rxc1+ {[%emt 0:03:22]} 31. Bxc1 {[%emt 0:00:01][%mdl 4096] Endgame. KQB-KQN} Ne3 {[%emt 0:05:21]} 32. Bb2 {[%emt 0:00:59] [#]} Nd5 $1 {[%emt 0:01:58]} 33. Bxd4 {[%emt 0:03:42]} Qxb4 {[%emt 0:00:07]} 34. Qf2 {[%emt 0:02:50]} Qb1+ {[%emt 0:00:18]} 35. Kh2 {[%emt 0:00:01]} Qxd3 {[%emt 0:00:09]} 36. Bc5 {[%emt 0:01:09]} (36. Qb2 $142 b5 (36... Nxf4 37. Qxb7+ Kd8 38. Bb6+ Ke8 39. Qc8+ Ke7 40. Bc5+) 37. Qa1) 36... Qe4 {[%emt 0:01:57]} 37. g3 {[%emt 0:00:24]} (37. Qxh4 {was necessary.} Qxf4+ (37... Nxf4 38. Qe7+ Kc8 39. Qf8+ Kc7 40. Qe7+ Kc8 41. Qf8+ Kd7 42. Qd6+ Kc8 43. Qf8+ $11) 38. Qxf4 Nxf4 39. Bd6) 37... hxg3+ {[%emt 0:01:04]} 38. Kxg3 {[%emt 0:00:08]} Kc6 {[%emt 0:01:11][%cal Oe4f4] Strongly threatening ...Qxf4+!} 39. Bd4 {[%emt 0:00:48]} b5 {[%emt 0:00:33]} 40. Ba7 {[%emt 0:00:26]} Qc4 {[%emt 0:00:44] Against Qc5+} 41. Kg4 {[%emt 0:00:40]} b4 {[%emt 0:00:18]} 42. Bd4 {[%emt 0:00:28]} Kb5 {[%emt 0:02:50]} 43. Qb2 {[%emt 0:00:35]} Qd3 {[%emt 0:01:17]} 44. Qa1 {[%emt 0:00:29]} Qe2+ {[%emt 0:00:57]} 45. Kg3 {[%emt 0:00:07]} b3 {[%emt 0:00:37]} 46. Qa7 {[%emt 0:00:36] Wards off Ne7} Qe1+ {[%emt 0:01:20]} 47. Kg4 {[%emt 0:00:36]} Qd1+ {[%emt 0:00:29]} 48. Kg3 {[%emt 0:00:05]} Kc4 {[%emt 0:00:26]} 49. Qc5+ {[%emt 0:00:37]} Kd3 {[%emt 0:00:11]} 50. Bf2 {[%emt 0:00:44]} Qc2 {[%emt 0:01:55] ( -> ...Qxc5)} 51. Qd4+ {[%emt 0:00:43]} Ke2 {[%emt 0:00:06] Black mates.} 52. f5 {[%emt 0:00:33]} Qd3+ {[%emt 0:01:02]} 53. Kg2 {[%emt 0:00:21]} Qxd4 {[%emt 0:00:33]} 54. Bxd4 {[%emt 0:00:03]} exf5 {[%emt 0:00:11] What a bad dream for White.   Weighted Error Value: White=0.78/Black=0.25 (precise) .  Mistake:       	White=6     	Black=2      Inaccurate:     	White=3     	Black=2      OK:         	White=13    	Black=18     Best:        	White=4     	Black=1      Strong:       	---       	Black=1} 0-1

[Event "Budapest IM-A ONE WEEK Feb 2024"]
[Site "Budapest"]
[Date "2024.03.01"]
[Round "7.3"]
[White "Fodor, Balazs"]
[Black "Horvath, David"]
[Result "1/2-1/2"]
[ECO "E16"]
[WhiteElo "2215"]
[BlackElo "2330"]
[Annotator "TA"]
[PlyCount "25"]
[EventDate "2024.02.25"]
[EventType "tourn"]
[EventCountry "HUN"]
[SourceTitle "playchess.com"]
[Source "ChessBase"]
[SourceQuality "1"]
[TimeControl "5400+30"]

{[%evp 15,25,29,18,0,0,0,40,13,10,12,3,9]} 1. d4 {[%emt 0:00:19]} Nf6 {[%emt 0:00:08]} 2. c4 {[%emt 0:00:07]} e6 {[%emt 0:00:08]} 3. Nf3 {[%emt 0:00:12]} Bb4+ {[%emt 0:06:18]} 4. Bd2 {[%emt 0:00:09]} Qe7 {[%emt 0:00:05]} 5. g3 {[%emt 0:00:29]} Nc6 {[%emt 0:00:24]} 6. Bg2 {[%emt 0:00:29]} Bxd2+ {[%emt 0:00:09]} 7. Qxd2 {[%emt 0:02:03]} Ne4 {[%emt 0:01:17]} 8. Qc2 {[%emt 0:06:03]} Qb4+ {[%emt 0:04:46]} 9. Nc3 {[%emt 0:11:03]} (9. Kf1 $5) 9... Nxc3 {[%emt 0:03:18]} 10. bxc3 {[%emt 0:04:08]} Qe7 11. c5 {[%emt 0:07:39]} d6 {[%emt 0:20:35]} 12. cxd6 {[%emt 0:00:11]} cxd6 {[%emt 0:00:05]} 13. O-O {[%emt 0:08:51] An uneventful encounter.   Weighted Error Value: White=0.14 (very precise) /Black=0.14 (very precise) .  Inaccurate:     	White=1     	Black=1      OK:         	White=1     	---        Best:        	---       	Black=1} 1/2-1/2

[Event "Budapest IM-A ONE WEEK Feb 2024"]
[Site "Budapest"]
[Date "2024.03.01"]
[Round "7.5"]
[White "Szeberenyi, Adam"]
[Black "Ulasevich, Sergei"]
[Result "1/2-1/2"]
[ECO "E94"]
[WhiteElo "2255"]
[BlackElo "2261"]
[Annotator "TA"]
[PlyCount "24"]
[EventDate "2024.02.25"]
[EventType "tourn"]
[EventCountry "HUN"]
[SourceTitle "playchess.com"]
[Source "ChessBase"]
[SourceQuality "1"]
[TimeControl "5400+30"]

{[%evp 15,24,33,72,20,27,20,33,18,19,18,16]} 1. d4 {[%emt 0:01:46]} Nf6 {[%emt 0:00:06]} 2. Nf3 {[%emt 0:00:44]} g6 {[%emt 0:00:31]} 3. c4 {[%emt 0:00:04]} Bg7 {[%emt 0:00:04]} 4. Nc3 {[%emt 0:00:04]} O-O {[%emt 0:00:08]} 5. e4 {[%emt 0:00:39]} d6 {[%emt 0:00:06]} 6. Be2 {[%emt 0:00:12]} e5 {[%emt 0:01:01]} 7. O-O {[%emt 0:00:15]} Na6 {[%emt 0:01:31]} 8. Be3 {[%emt 0:05:11]} Qe7 {[%emt 0:00:30][%cal Of6e4] [#]} 9. dxe5 {[%emt 0:11:56]} ({Better is} 9. d5 $1 $16) 9... dxe5 $11 {[%emt 0:00:18]} 10. Nd5 {[%emt 0:00:18]} Qd8 {[%emt 0:00:09]} 11. Nxf6+ {[%emt 0:01:40]} ({Weaker is} 11. Nxe5 Nxd5 (11... Nxe4 12. Nd3 $15) 12. cxd5 Bxe5 $17) 11... Bxf6 {[%emt 0:01:50]} 12. c5 {[%emt 0:00:53][%cal Oc5c6]} Qxd1 {[%emt 0:00:17] White did not feel at home in the position after the opening.   Weighted Error Value: White=0.23 (precise) /Black=0.16 (very precise) .  OK:         	White=2     	Black=2} 1/2-1/2

[Event "Budapest IM-A ONE WEEK Feb 2024"]
[Site "Budapest"]
[Date "2024.03.01"]
[Round "8.1"]
[White "Meessen, Rudolf"]
[Black "Ulasevich, Sergei"]
[Result "0-1"]
[ECO "A45"]
[WhiteElo "2169"]
[BlackElo "2261"]
[Annotator "TA"]
[PlyCount "106"]
[EventDate "2024.02.25"]
[EventType "tourn"]
[EventCountry "HUN"]
[SourceTitle "playchess.com"]
[Source "ChessBase"]
[SourceQuality "1"]
[TimeControl "5400+30"]

{[%evp 9,106,0,5,11,24,0,17,0,2,0,0,-8,11,-56,-64,-60,-53,-55,-16,-11,-14,-11,-16,-219,-243,-240,-241,-234,-216,-306,-326,-303,-325,-305,-323,-332,-308,-325,-313,-337,-338,-340,-277,-329,-312,-346,-347,-337,-322,-359,-355,-342,-306,-345,-360,-364,-338,-312,0,-354,-337,-342,-283,-289,-282,-276,-265,-509,-340,-429,-289,-1050,-1160,-1083,-916,-1096,-1039,-29952,-29954,-6537,-6079,-29973,-29974,-29975,-29976,-29976,-29977,-29977,-29978,-29978,-29979,-29979,-29980,-29982,-29983,-29983,-29984,-29984,-29985]} 1. d4 {[%emt 0:03:59]} Nf6 {[%emt 0:00:19]} 2. Nc3 {[%emt 0:00:14]} d5 {[%emt 0:00:23]} 3. Bf4 {[%emt 0:00:05]} g6 {[%emt 0:00:47]} 4. e3 {[%emt 0:00:08]} Bg7 {[%emt 0:00:06]} 5. h4 {[%emt 0:00:09]} h5 {[%emt 0:00:11]} 6. Nf3 {[%emt 0:00:06]} O-O {[%emt 0:00:23][%cal Oc7c5]} 7. Ne5 {[%emt 0:00:34]} c5 {[%emt 0:00:08]} 8. Qd2 {[%emt 0:00:09] The position is equal.} Nc6 {[%emt 0:00:11]} 9. f3 {[%emt 0:00:07]} cxd4 {[%emt 0:00:31]} 10. exd4 {[%emt 0:00:28]} Nd7 {[%emt 0:00:08][%cal Rd7e5]} 11. O-O-O {[%emt 0:01:57]} (11. Nxd5 $11 Ndb8 12. c4) 11... Ndxe5 $15 {[%emt 0:00:52]} 12. dxe5 {[%emt 0:00:14]} d4 {[%emt 0:00:07]} 13. Nb5 {[%emt 0:07:52][%cal Rb5d4]} Bf5 {[%emt 0:15:09] Threatens to win with ...Rc8.} 14. Nxd4 {[%emt 0:04:19]} Nxd4 {[%emt 0:03:35]} 15. Qxd4 {[%emt 0:00:06]} Qa5 {[%emt 0:19:46]} 16. Bc4 $2 {[%emt 0:06:10] [#]} (16. Qd5 $11 {and White stays safe.} Qa4 17. Qc4 Bxc2 18. Qxa4 Bxa4 19. b3) 16... Rac8 $1 $19 {[%emt 0:00:41]} 17. Bb3 {[%emt 0:00:54] [#]} Bxc2 {[%emt 0:00:35][%mdl 512]} 18. Bxc2 {[%emt 0:00:18] And now Kb1 would win.} Qxa2 $40 {[%emt 0:00:12][%mdl 128] Black has strong attack.} 19. Be3 (19. Rhe1 $142 Rc4 20. Qd3 (20. Qd5 $2 Rxc2+ 21. Kxc2 Rc8+ 22. Kd3 Qxd5+ $19) 20... Rxf4 21. Qa3 Qxa3 22. bxa3) 19... Rc4 {[%emt 0:06:50]} 20. Qxa7 {[%emt 0:15:32]} Qb3 {[%emt 0:00:15]} 21. Rd2 {[%emt 0:03:31] Black must now prevent Kb1.} Rfc8 $1 {[%emt 0:00:13][%cal Rc4c2]} (21... Bxe5 22. Qa3 Bxb2+ 23. Qxb2 $11) 22. Kb1 {[%emt 0:04:37]} Rxc2 {[%emt 0:00:26][%csl Gc2][%cal Rb3b2]} 23. Qa3 {[%emt 0:03:25]} Qc4 {[%emt 0:06:32]} 24. Rxc2 {[%emt 0:08:59]} Qxc2+ {[%emt 0:00:04]} 25. Ka2 {[%emt 0:00:06]} Qxg2 {[%emt 0:00:49]} 26. Rc1 {[%emt 0:00:06]} Rxc1 {[%emt 0:06:13]} 27. Bxc1 {[%emt 0:00:02][%mdl 4096] Endgame. KQB-KQB} Qc2 {[%emt 0:00:15]} ({Don't take} 27... Bxe5 28. Qxe7 Qe2 29. Qxb7) 28. Bg5 {[%emt 0:04:17]} Bxe5 {[%emt 0:01:34]} 29. Qa8+ {[%emt 0:05:16]} Kg7 {[%emt 0:00:07][%csl Ge5][%cal Rc2b2]} 30. Qxb7 {[%emt 0:00:03]} e6 {[%emt 0:02:20]} 31. Be7 {[%emt 0:09:36]} Qa4+ {[%emt 0:01:51]} 32. Kb1 {[%emt 0:00:29]} Qd4 {[%emt 0:00:08]} 33. Ka2 {[%emt 0:07:35]} Qa4+ {[%emt 0:07:19]} 34. Kb1 {[%emt 0:00:06]} Bg3 {[%emt 0:00:09]} 35. b3 {[%emt 0:06:10]} Qf4 {[%emt 0:06:06]} 36. Qa8 {[%emt 0:00:50]} Qf5+ {[%emt 0:01:41]} ({And not} 36... Bxh4 37. Qf8+ Kh7 38. Bxh4 $11) 37. Ka2 {[%emt 0:00:18]} Kh7 {[%emt 0:01:52]} 38. Qe4 {[%emt 0:03:29]} (38. Ka3) 38... Qa5+ {[%emt 0:02:02]} 39. Ba3 {[%emt 0:00:02]} Qd5 {[%emt 0:07:22]} ({Less strong is} 39... Qa7 40. Kb2 $19) 40. Qxd5 {[%emt 0:01:40]} (40. Be7) 40... exd5 {[%emt 0:00:01] KB-KB} 41. Be7 {[%emt 0:00:07]} Kg7 {[%emt 0:00:05] ...f6 is the strong threat.} 42. b4 {[%emt 0:00:22]} f6 {[%emt 0:00:16][%cal Og6g5] ...g5! would now be deadly.} 43. Bd8 {[%emt 0:02:27] [#]} g5 $1 {[%emt 0:03:02][%mdl 512]} 44. hxg5 {[%emt 0:01:32]} h4 {[%emt 0:00:03] ( -> ...h3)} 45. gxf6+ {[%emt 0:02:32]} Kf7 {[%emt 0:00:05] Black mates.} 46. Bb6 {[%emt 0:01:58]} h3 {[%emt 0:00:06]} 47. Bg1 {[%emt 0:00:02]} h2 {[%emt 0:00:10]} 48. Bxh2 {[%emt 0:00:03]} Bxh2 {[%emt 0:00:04]} 49. Kb3 {[%emt 0:00:49]} Kxf6 {[%emt 0:00:21] KB-KPP} 50. Kc3 {[%emt 0:00:13]} Bg1 {[%emt 0:00:06]} 51. b5 {[%emt 0:00:26]} Ke5 {[%emt 0:00:15]} 52. Kd3 {[%emt 0:00:56]} Kf4 {[%emt 0:00:09]} 53. Ke2 {[%emt 0:00:02]} Bb6 {[%emt 0:00:06] Weighted Error Value: White=0.56/Black=0.19 (very precise) .  Loses game:     	White=1     	---        Mistake:       	White=4     	---        Inaccurate:     	---       	Black=3      OK:         	White=15    	Black=15     Best:        	White=4     	Black=2      Strong:       	---       	Black=2      Brilliant:      	---       	Black=1} 0-1

[Event "Budapest IM-A ONE WEEK Feb 2024"]
[Site "Budapest"]
[Date "2024.03.01"]
[Round "8.2"]
[White "Toth-Goczo, Melinda"]
[Black "Szeberenyi, Adam"]
[Result "1/2-1/2"]
[ECO "D02"]
[WhiteElo "2201"]
[BlackElo "2255"]
[Annotator "TA"]
[PlyCount "27"]
[EventDate "2024.02.25"]
[EventType "tourn"]
[EventCountry "HUN"]
[SourceTitle "playchess.com"]
[Source "ChessBase"]
[SourceQuality "1"]
[TimeControl "5400+30"]

{[%evp 17,27,25,14,0,0,0,16,6,8,-8,-1,-8]} 1. d4 {[%emt 0:00:06]} d5 {[%emt 0:02:03]} 2. Nf3 {[%emt 0:00:40]} Nf6 {[%emt 0:00:04]} 3. c4 {[%emt 0:00:19]} e6 {[%emt 0:00:15]} 4. cxd5 {[%emt 0:00:53]} exd5 {[%emt 0:00:04]} 5. Bg5 {[%emt 0:00:28]} Bb4+ {[%emt 0:00:20]} 6. Nc3 {[%emt 0:00:15]} h6 {[%emt 0:00:33]} 7. Bxf6 {[%emt 0:00:17]} Qxf6 {[%emt 0:00:03]} 8. Qa4+ {[%emt 0:03:40]} Nc6 {[%emt 0:00:06][%cal Bb8c6,Bc6e7,Be7f5][%mdl 32]} 9. e3 {[%emt 0:00:10]} O-O {[%emt 0:00:41]} 10. Bb5 {[%emt 0:02:49] The position is equal.} Bxc3+ {[%emt 0:05:05]} 11. bxc3 {[%emt 0:00:08]} Ne7 {[%emt 0:00:03]} 12. Bd3 {[%emt 0:00:30]} Bf5 {[%emt 0:03:00]} 13. Bxf5 {[%emt 0:00:43]} Nxf5 {[%emt 0:00:07]} 14. O-O {[%emt 0:00:42] Not much happened in this game.   Weighted Error Value: White=0.13 (very precise) /Black=0.00 (flawless) .  OK:         	---       	Black=2} 1/2-1/2